Cogmind - Beta 13 @@@ ROGUE MODE // 2024.04.02 @ 23:03:26 Player: gabr Result: Destroyed by G-47 Trooper with Particle Gun Performance ------------- Evolutions (1) 500 Regions Visited (3) 600 Robots Destroyed (58) 290 Value Destroyed (964) 964 Prototype IDs (4) 80 Alien Tech Used (0) 0 Bonus (0) 0 TOTAL SCORE: 2434 Bonus ------- None Cogmind --------- Core Integrity 0/400 Matter 267/300 Energy 280/280 System Corruption 5% Temperature Warm (126) Movement Walking (190) Ox1 Location -9/Storage Parts ------- > --- POWER (1) -------- Heavy Ion Engine > --- PROPULSION (2) --- Aluminum Leg Aluminum Leg > --- UTILITY (2) ------ Large Storage Unit Targeting Computer > --- WEAPON (4) ------- Improved EM Shotgun Improved Medium Laser Advanced Beam Cannon Mace > --- INVENTORY (15) --- Improved Ion Engine Heavy Ion Engine Heavy Ion Engine Heavy Ion Engine Heavy Ion Engine Aluminum Leg Medium Storage Unit Visual Processing Unit Utility Shielding Weapon Shielding Tractor Beam Small Laser Beam Rifle Maul Peak State ------------ > --- POWER ------------ Heavy Ion Engine > --- PROPULSION ------- Aluminum Leg Aluminum Leg > --- UTILITY ---------- Medium Storage Unit Targeting Computer > --- WEAPON ----------- Improved EM Shotgun Improved Medium Laser Advanced Beam Cannon Heavy Assault Rifle > --- INVENTORY -------- Heavy Ion Engine Heavy Ion Engine Heavy Ion Engine Heavy Ion Engine Aluminum Leg Visual Processing Unit Weapon Shielding Tractor Beam Small Laser Maul [Rating: 20] Favorites ----------- Power Light Ion Engine Engine Light Ion Engine Propulsion Aluminum Leg Treads Improved Treads Leg Aluminum Leg Utility Targeting Computer Storage Large Storage Unit Processor Targeting Computer Weapon Medium Laser Energy Gun Medium Laser Energy Cannon Beam Cannon Ballistic Gun Heavy Assault Rifle Launcher Rocket Launcher Impact Weapon Mace Build | -11 -10 -9 -9 ------- Run | Yrd Mat Mat Sto Slots Evolved 2 | . . 2 . Power . | . . . . Propulsion . | . . . . Utility . | . . . . Weapon 2 | . . 2 . Parts Attached 46 | 7 11 20 8 Power 5 | 1 2 2 . Engine 5 | 1 2 2 . Core . | . . . . Reactor . | . . . . Propulsion 11 | 2 3 6 . Treads 2 | . . 2 . Leg 9 | 2 3 4 . Wheel . | . . . . Hover . | . . . . Flight . | . . . . Utility 7 | 2 3 1 1 Device . | . . . . Storage 6 | 2 2 1 1 Processor 1 | . 1 . . Hackware . | . . . . Protection . | . . . . Artifact . | . . . . Weapon 23 | 2 3 11 7 Energy Gun 13 | 1 3 6 3 Energy Cannon 3 | . . 2 1 Ballistic Gun 4 | 1 . 2 1 Ballistic Cannon . | . . . . Launcher 1 | . . 1 . Special Weapon . | . . . . Impact Weapon 2 | . . . 2 Slashing Weapon . | . . . . Piercing Weapon . | . . . . Special Melee Weapon . | . . . . Unidentified Prototypes 4 | . . 1 3 Corrupted Parts 1 | . . 1 . System Corruption 5 | . . 5 . Parts Lost 11 | . . 11 . Power 1 | . . 1 . Propulsion 4 | . . 4 . Utility . | . . . . Weapon 6 | . . 6 . Highest Loss Streak 9 | . . 9 . To Critical Strikes . | . . . . Average Slot Usage (%) 95 | . 99 87 100 Engine 11 | . 14 8 11 Leg 23 | . 28 18 22 Storage 12 | . 14 11 11 Processor 12 | . 13 11 11 Energy Gun 25 | . 27 21 26 Energy Cannon 3 | . . 8 5 Ballistic Gun 2 | . . 3 9 Naked Turns . | . . . . Heaviest Build 40 | 16 29 32 40 Greatest Support 46 | 20 20 46 20 Greatest Overweight (x) 9 | . 1 9 1 Average Overweight (x) . | . . 1 1 Largest Inventory Capacity 15 | 8 15 15 15 Average Capacity 12 | 7 13 12 10 Most Carried 15 | 4 15 15 14 Average Carried 11 | 2 12 10 10 Final Capacity 15 | 8 15 10 15 Final Carried 15 | 4 15 10 14 Class Distribution -------------------- 56% | Mutant 25% | Gunner 17% | Scavenger-Gunner Dominant Class ---------------- Mutant | -10/Materials Gunner | -9/Materials Gunner | -9/Storage Resources | -11 -10 -9 -9 ----------- Run | Yrd Mat Mat Sto Matter Collected 1158 | 275 357 345 181 Remotely . | . . . . Salvage Created 2076 | 82 751 1023 220 Parts 117 | 1 44 53 19 Haulers Intercepted 5 | . 2 2 1 Recyclers Shooed 3 | . 3 . . Parts Field Recycled . | . . . . Retrieved Matter . | . . . . Parts Self-Destructed . | . . . . Prevented . | . . . . Kills | -11 -10 -9 -9 ------- Run | Yrd Mat Mat Sto Combat Hostiles Destroyed 30 | . 10 16 4 Guns 19 | . 10 8 1 Cannons 11 | . . 8 3 Classes Destroyed 8 | 1 6 1 . Worker 4 | . 2 2 . Builder 5 | . 2 1 2 Hauler 5 | . 2 2 1 Recycler 8 | 1 5 2 . Watcher 6 | . 2 4 . Swarmer 15 | . 9 4 2 Grunt 7 | . 1 6 . Sentry 8 | . . 6 2 Best Kill Streak 6 | 1 6 5 5 Combat Bots Only 5 | . 3 5 2 Max Kills in Single Turn 2 | 1 1 2 2 Gunslinging . | . . . . Exploded . | . . . . Melee . | . . . . Uniques/NPCs Destroyed . | . . . . Combat | -11 -10 -9 -9 -------- Run | Yrd Mat Mat Sto Hostile Shots Fired 211 | . 48 143 20 Missed 47 | . 13 31 3 Damage Taken 2032 | . 299 1447 286 Core 469 | . 61 276 132 Absorbed by Shields . | . . . . Core Remaining (%) 87 | 100 75 . . Volleys Fired 151 | 5 57 72 17 Largest 4 | 2 2 4 4 Hottest 192 | 70 100 170 192 Shots Fired 353 | 10 114 165 64 Gun 292 | 10 114 115 53 Cannon 60 | . . 49 11 Launcher 1 | . . 1 . Special . | . . . . Kinetic 34 | 5 . 13 16 Thermal 303 | 5 114 151 33 Explosive 1 | . . 1 . Electromagnetic 15 | . . . 15 Robot Hit Streak 11 | 2 11 10 7 Robot Miss Streak 4 | 2 4 3 3 Penetration Max . | . . . . Secondary Targets 4 | . 1 3 . Max Gunslinging Chain 1 | . 1 1 . Shots Hit Robots 201 | 4 72 96 29 Core Hits 88 | 2 32 41 13 Critical Kills . | . . . . Critical Parts Destroyed . | . . . . Critical Strikes 10 | 1 6 2 1 Burn 10 | 1 6 2 1 Melee Attacks 2 | . . . 2 Impact 2 | . . . 2 Slashing . | . . . . Piercing . | . . . . Sneak Attacks . | . . . . Combat Hostiles . | . . . . Follow-up Attacks . | . . . . Damage Inflicted 2838 | 38 887 1381 532 Guns 2178 | 38 887 823 430 Cannons 646 | . . 544 102 Explosions 14 | . . 14 . Melee . | . . . . Ramming . | . . . . Kinetic 312 | 26 . 126 160 Thermal 2439 | 12 887 1241 299 Explosive 14 | . . 14 . Electromagnetic 73 | . . . 73 Impact . | . . . . Slashing . | . . . . Piercing . | . . . . Highest Corruption 5 | . . 5 5 Average Corruption 5 | . . 5 5 Corruption Purged . | . . . . Corruption Blocked . | . . . . Effects 35 | . . 22 13 Message Errors 7 | . . 6 1 Matter Fused 7 | . . 4 3 Heat Flow Errors 4 | . . 3 1 Energy Discharges 6 | . . 3 3 Data Loss (minor) 4 | . . 2 2 Data Loss (major) 2 | . . 1 1 Misfires 1 | . . 1 . Alerts 2 | . . 1 1 Weapon Failures 2 | . . 1 1 Overload Shots . | . . . . Overflow Damage . | . . . . Projectiles . | . . . . Explosions . | . . . . Melee . | . . . . Knockbacks . | . . . . Impact . | . . . . Kinetic . | . . . . Secondary . | . . . . Self-Inflicted Damage . | . . . . Shots . | . . . . Rammed . | . . . . Targets Rammed . | . . . . Kicked . | . . . . Crushed . | . . . . Highest Temperature 607 | 60 482 566 607 Average Temperature 168 | 29 126 192 208 Received Heat Transfer 705 | . 12 645 48 Effects 35 | . 6 25 4 Shutdowns 4 | . 1 2 1 Energy Bleed 9 | . 1 7 1 Interference 8 | . 2 6 . Matter Decay 6 | . 2 3 1 Short Circuit 4 | . . 4 . Damage (minor) 2 | . . 2 . Damage (major) 1 | . . 1 . Damage (core) 1 | . . . 1 Siege Activations . | . . . . Robots Corrupted . | . . . . Combat Hostiles . | . . . . Parts Fried . | . . . . Impact Corruptions . | . . . . Robots Melted . | . . . . Combat Hostiles . | . . . . Parts Melted 11 | . 4 5 2 Heat Transferred 6873 | 111 3071 3000 691 Parts Sabotaged . | . . . . Parts Stolen . | . . . . Parts Stripped . | . . . . Power Chain Reactions . | . . . . Alert | -11 -10 -9 -9 ------- Run | Yrd Mat Mat Sto Peak Influence 311 | 5 174 311 240 Initial 117 | . 3 2 117 Average 113 | 2 73 180 136 Maximum Alert Level 1 | . . 1 1 Low Security (%) 86 | 100 100 59 88 Level 1 13 | . . 40 11 Level 2 . | . . . . Level 3 . | . . . . Level 4 . | . . . . Level 5 . | . . . . High Security . | . . . . Max Security . | . . . . Squads Dispatched 3 | . 1 . 2 Investigation 1 | . 1 . . Extermination . | . . . . Reinforcement 2 | . . . 2 Assault . | . . . . Garrison . | . . . . Intercept . | . . . . Searches Triggered . | . . . . Construction Impeded 1 | . . . 1 Haulers Reinforced . | . . . . Active Scanning Responses . | . . . . Cargo Convoy Interrupts . | . . . . Stealth | -11 -10 -9 -9 --------- Run | Yrd Mat Mat Sto Distress Signals 5 | . . 3 2 Communications Jammed . | . . . . Distress Signals . | . . . . Times Spotted 50 | . 15 25 10 Peak Tracking Total 9 | . 4 9 3 Tactical Retreats 1 | . . . 1 Traps | -11 -10 -9 -9 ------- Run | Yrd Mat Mat Sto Traps Triggered 3 | . 1 1 1 Indirectly . | . . . . Trap Hack Attempts . | . . . . Triggered . | . . . . Disarmed . | . . . . Reprogrammed . | . . . . Reused . | . . . . Traps Extracted . | . . . . Installed . | . . . . Triggered . | . . . . Machines | -11 -10 -9 -9 ---------- Run | Yrd Mat Mat Sto Machines Disabled 2 | . . 1 1 Max in Single Turn 1 | . . 1 1 Machines Repaired . | . . . . Machines Dismantled . | . . . . Machines Sabotaged . | . . . . Overloaded Fab Kills . | . . . . Hacking | -11 -10 -9 -9 --------- Run | Yrd Mat Mat Sto Machines Accessed 12 | . 5 6 1 Terminals 11 | . 5 5 1 Fabricators . | . . . . Repair Stations 1 | . . 1 . Recycling Units . | . . . . Scanalyzers . | . . . . Garrison Access . | . . . . Total Hacks 21 | . 9 11 1 Successful 5 | . 3 2 . Failed 16 | . 6 9 1 Catastrophic 7 | . 1 5 1 Database Lockouts . | . . . . Manual 15 | . 6 8 1 Terminals 19 | . 9 9 1 Fabricators . | . . . . Repair Stations 2 | . . 2 . Recycling Units . | . . . . Scanalyzers . | . . . . Garrison Access . | . . . . Terminal Hacks 4 | . 3 1 . Level Access Points 1 | . 1 . . Locate Traps 1 | . . 1 . Hauler Manifests 1 | . 1 . . Zone Layout 1 | . 1 . . Fabricator Hacks . | . . . . Repair Station Hacks 1 | . . 1 . Scan Component 1 | . . 1 . Recycling Unit Hacks . | . . . . Scanalyzer . | . . . . Garrison Access Hacks . | . . . . Unauthorized Hacks . | . . . . Terminals . | . . . . Fabricators . | . . . . Repair Stations . | . . . . Recycling Units . | . . . . Scanalyzers . | . . . . Garrison Access . | . . . . Data Cores Recovered . | . . . . Used . | . . . . Hacking Detections 9 | . 3 5 1 Full Trace Events . | . . . . Feedback Events . | . . . . Feedback Blocked . | . . . . Robot Schematics Acquired . | . . . . Robots Built . | . . . . Authchips . | . . . . Time . | . . . . Total Robot Build Rating . | . . . . Part Schematics Acquired . | . . . . Parts Built . | . . . . Authchips . | . . . . Time . | . . . . Total Part Build Rating . | . . . . Parts Repaired . | . . . . Time . | . . . . Parts Recycled . | . . . . Recycled Matter . | . . . . Retrieved Matter . | . . . . Retrieved Components . | . . . . Parts Scanalyzed . | . . . . Part Schematics Acquired . | . . . . Parts Damaged . | . . . . Bothacking | -11 -10 -9 -9 ------------ Run | Yrd Mat Mat Sto Used RIF Installer . | . . . . Robots Hacked . | . . . . Non-combat . | . . . . Combat . | . . . . Robot Hacks Applied . | . . . . Relay Couplers Released . | . . . . Fabnet Peak Effective % . | . . . . Robots Rewired . | . . . . Allies Hacked . | . . . . Hacks Repelled . | . . . . Allies | -11 -10 -9 -9 -------- Run | Yrd Mat Mat Sto Total Allies . | . . . . Largest Group . | . . . . Highest-Rated Group . | . . . . Highest-Rated Ally . | . . . . Total Orders . | . . . . Ally Attacks . | . . . . Total Damage . | . . . . Kills . | . . . . Allies Corrupted . | . . . . Allies Melted . | . . . . Intel | -11 -10 -9 -9 ------- Run | Yrd Mat Mat Sto Robot Analysis Total . | . . . . Derelict Logs Recovered . | . . . . Drone Launches . | . . . . Drone Recoveries . | . . . . Exploration | -11 -10 -9 -9 ------------- Run | Yrd Mat Mat Sto Turns Passed 2728 | 116 1311 786 515 Spaces Moved 1096 | 69 603 259 165 Core 9 | 3 . 6 . Treads 17 | . . 17 . Legs 1070 | 66 603 236 165 Wheels . | . . . . Hover . | . . . . Flight . | . . . . Fastest Speed 50 | 50 120 120 190 Average Speed 176 | 116 172 194 190 Slowest Speed 500 | 120 190 500 190 Overloaded Moves . | . . . . Propulsion Burnouts . | . . . . Robots Hopped . | . . . . Cave-ins Triggered . | . . . . Exploration Rate (%) 29 | 4 64 24 27 Regions Visited 3 Branch Regions 1 Pre-discovered Areas . | . . . . Known Exits Taken 1 | . 1 . . Unknown Exits Taken 2 | 1 . 1 . Scrap Searched . | . . . . Spaces Dug . | . . . . Terrain Destroyed 15 | . . 15 . Melee . | . . . . Projectile . | . . . . AOE 15 | . . 15 . Terrain Rammed . | . . . . Walls Destroyed . | . . . . Machines Disabled . | . . . . Actions | -11 -10 -9 -9 --------- Run | Yrd Mat Mat Sto Total 1593 | 92 768 411 322 Wait 223 | 8 57 41 117 Move 1093 | 68 602 258 165 Hop . | . . . . Pick Up 38 | 3 21 9 5 Fast Attach 27 | 7 3 13 4 Attach 6 | . . 6 . Detach 6 | 1 2 3 . Swap 13 | . 8 1 4 Drop 34 | . 18 8 8 Fire 151 | 5 57 72 17 Melee 2 | . . . 2 Ram . | . . . . Kick . | . . . . Crush . | . . . . Escape Stasis . | . . . . Rewire . | . . . . Trap . | . . . . Miscellaneous . | . . . . Route ------- -11/Scrapyard -10/Materials (discovered 3 exits: *Mat x3) -9/Materials -9/Storage History --------- Turn | Location | Event 34 | -11/Scrapyard | Discovered new exit (range 15) 117 | -11/Scrapyard | Entered Materials 306 | -10/Materials | Build established: Mutant 1061 | -10/Materials | Identified exit to Materials 1428 | -10/Materials | Entered another Materials area 1428 | -9/Materials | Evolved 2 slots: Weapon x2 1710 | -9/Materials | Core integrity fell below 50% 1728 | -9/Materials | Lost 9 parts (1p4n4w) 2032 | -9/Materials | Discovered new exit (range 8) 2214 | -9/Materials | Entered Storage 2347 | -9/Storage | Build established: Scavenger-Gunner 2561 | -9/Storage | Core integrity fell below 20% 2724 | -9/Storage | Build established: Gunner 2729 | -9/Storage | Destroyed by G-47 Trooper with Particle Gun Last Messages --------------- 02618_ K-01 Serf collects debris. 02618_ Lgt. Ion Engine melted. 02618_ S-10 Pest destroyed. 02618_ Door malfunctions. 02622_ Destroyed Lgt. Ion Engine. 02622_ S-10 Pest destroyed. 02626_ K-01 Serf cleans the Compression Vault. 02634_ U-05 Engineer repairs door. 02637_ Dropped Hvy. Assault Rifle. 02637_ Acquired Unknown Impact Weapon. 02637_ Identified Mace. 02646_ Dropped Med. Storage Unit. 02659_ Acquired Med. Storage Unit. 02660_ System corrupted: Component data lost. 02662_ Acquired Utility Shielding. 02676_ Acquired 19 matter. 02680_ System corrupted: IFF burst signal emitted. 02707_ Acquired Imp. Ion Engine. 02723_ Acquired Beam Rifle. 02724_ System corrupted: Matter fused (-10). Map ----- +----------------------------------------------------+ | | | | | | | | | | | | | | | | | | | | | | | | | | | | | ???????????????????????????????????????? | | ???????????????????????#########???????? | | ???????????????????????# [ [ #???????? | | ????#################### #???????? | | ???? + #???????? | | ?????????# ##+#########???????? | | ?????????# # % #???????????? | | ?????????# # """ #???????????? | | ?????????# # """ ##??????????? | | ?????????# # """ #??????????? | | ?????????# + ! ##??????????? | | ?????????# # * @ #???????????? | | ?????????# #####g#####????????? | | ?????????# !%! +?????????? | | ?????????# ! ! #?????????? | | ?????????# #?????????? | | ?????????+ g=!g +?????????? | | ?????????# ##+##### [ #?????????? | | ?????????# ???????#=%= #?????????? | | ?????????+ ???????#!=! #?????????? | | ?????????# ###???????# ! #?????????? | | ?????????# ??????????# #?????????? | | ??????????? ???????????# g ########??? | | ????????????????????????# # #??? | | ?????????????????????#### # """ #??? | | ?????????????????+ + """ #??? | | ?????????????????##### # """ #??? | | ?????????????????????# # #??? | | ?????????????????????# # #??? | | ?????????????????????# ######+######? | | ?????????????????##### ??# #? | | ?????????????????+ ??# """ #? | | ?????????????????# ??# "["" " #? | | ???????????????### ### " ""=" #? | | ????????????? # "=""[" #? | | ????????????? + "[""[" #? | +----------------------------------------------------+ Best States ------------- Heat Dissipation 28 Energy Generation 14 Energy Capacity 280 Matter Stores 300 Matter Capacity 450 Sight Range 16 Terrain Scan Density 10 Evasion (%) 55 Targeting Accuracy 5 Recoil Reduction 2 Item Schematics ----------------- None Robot Schematics ------------------ None Fabricated ------------ Nothing Alien Tech Used ----------------- None Achievements -------------- None Challenges ------------ None Game ------ Seed MomentumGlidesysLog Manual? 0 Play Time 00:17:11 Cumulative 39.0 hours Start 2024.04.02 @ 22:48:41 End 2024.04.02 @ 23:03:26 Sessions 1 Manual Loads 0 Difficulty Rogue Special Mode None Game No. 89 Rogue 89 Adventurer 0 Explorer 0 Win Type - Total 0 Types 0/0/0/0/0/0/0/0/0 Lore% 20 Gallery% 31 Achievement% 26 Wizard Run 0 Options --------- Layout 0 ASCII 0 Keyboard 1 Movement Numpad Keybinds 0 Fullscreen 1 Font 18/X11 Map View 76x50 Zoom Use 0% Tactical HUD 1 Map Filters NONE Filters NONE Steam 1 RUN: c6fc5174-c39c-4ed2-ae9a-b235dca30eb4